Workbook

Sheet паспорт
A1: ПАТ "УКРТРАНСГАЗ" | G1: ПАСПОРТ ФІЗИКО-ХІМІЧНИХ ПОКАЗНИКІВ ПРИРОДНОГО ГАЗУ № 687
A2: Філія "УМГ "ХАРКІВТРАНСГАЗ" | G2: переданого Херсонським ЛВУМГ та прийнятого ПАТ " Херсонгаз" точка відбору ГРС м. Верхній Рогачик
A3: Херсонське ЛВУМГ
A4: Вимірювальна хіміко-аналітична лабораторія | M4: Маршрут № 687
A5: Свідоцтво про атестацію РЧ 161/2015 дійсне до 01.01.2019 р. | K5: по газопроводу ШДКРІ - Запорізька ГРЕС - Мелітополь | V5: за період з 01.05.2017р. по 31.05.2017р.
A7: Число місяця | B7: Компонентний склад, мол. % | N7: Фізико-хімічні показники газу обчислені на основі компонентного складу, 101,325 кПа | X7: Температура точки роси за вологою (Р = 3.92 МПа), °С | Y7: Температура точки роси за вуглеводнями, °С | Z7: Вміст сірководню, г/м3 | AA7: Вміст меркаптанової сірки, г/м3 | AB7: Вміст механічних домішок, г/м3
N8: Густина абсолютна, кг/м3,при 20 °С, | O8: Температура вимірювання/згоряння при 20/25°С
B9: метан, С1 | C9: етан, С2 | D9: пропан, С3 | E9: ізо-бутан, і-С4 | F9: н-бутан, н-С4 | G9: нео-пентан, нео-С5 | H9: ізо-пентан, і-С5 | I9: н-пентан, н-С5 | J9: гексани та вищі, С6+ | K9: кисень, О2 | L9: азот, N2 | M9: діоксид вуглецю, CО2 | O9: Теплота згоряння нижча | R9: Теплота згоряння вища | U9: Число Воббе вище
O10: ккал/м³ | P10: МДж/м³ | Q10: кВт⋅год/м³ | R10: ккал/м³ | S10: МДж/м³ | T10: кВт⋅год/м³ | U10: ккал/м³ | V10: МДж/м³ | W10: кВт⋅год/м³
A11: 1 | O11: 8242 | P11: 34.51 | Q11: 9.59 | R11: 9136 | S11: 38.25 | T11: 10.63 | U11: 11897 | V11: 49.81 | W11: 13.84
A12: 2 | O12: 8242 | P12: 34.51 | Q12: 9.59 | R12: 9136 | S12: 38.25 | T12: 10.63 | U12: 11897 | V12: 49.81 | W12: 13.84
A13: 3 | B13: 95.3435 | C13: 2.5109 | D13: 0.8085 | E13: 0.1235 | F13: 0.131 | G13: 0.0019 | H13: 0.0273 | I13: 0.02 | J13: 0.0229 | K13: 0.0075 | L13: 0.7837 | M13: 0.2194 | N13: 0.7052 | O13: 8227.715794 | P13: 34.4478 | Q13: 9.568833333 | R13: 9121.668229 | S13: 38.1906 | T13: 10.6085 | U13: 11920.70333 | V13: 49.9096 | W13: 13.86377778 | X13: -21.5 | Y13: -16.3 | AD13: =IF(AC13=100,"ОК"," ") -> 
A14: 4 | B14: 95.3806 | C14: 2.4967 | D14: 0.8006 | E14: 0.1225 | F14: 0.1294 | G14: 0.0018 | H14: 0.0267 | I14: 0.0197 | J14: 0.0203 | K14: 0.0076 | L14: 0.7764 | M14: 0.2175 | N14: 0.7049 | O14: 8225.112374 | P14: 34.4369 | Q14: 9.565805556 | R14: 9118.921501 | S14: 38.1791 | T14: 10.60530556 | U14: 11920.24952 | V14: 49.9077 | W14: 13.86325 | X14: -18.2 | Y14: -13.6 | AD14: =IF(AC14=100,"ОК"," ") -> 
A15: 5 | O15: 8225.112374 | P15: 34.4369 | Q15: 9.565805556 | R15: 9118.921501 | S15: 38.1791 | T15: 10.60530556 | U15: 11920.24952 | V15: 49.9077 | W15: 13.86325
A16: 6 | O16: 8225.112374 | P16: 34.4369 | Q16: 9.565805556 | R16: 9118.921501 | S16: 38.1791 | T16: 10.60530556 | U16: 11920.24952 | V16: 49.9077 | W16: 13.86325 | AB16: відсутні
A17: 7 | O17: 8225.112374 | P17: 34.4369 | Q17: 9.565805556 | R17: 9118.921501 | S17: 38.1791 | T17: 10.60530556 | U17: 11920.24952 | V17: 49.9077 | W17: 13.86325
A18: 8 | O18: 8225.112374 | P18: 34.4369 | Q18: 9.565805556 | R18: 9118.921501 | S18: 38.1791 | T18: 10.60530556 | U18: 11920.24952 | V18: 49.9077 | W18: 13.86325
A19: 9 | O19: 8225.112374 | P19: 34.4369 | Q19: 9.565805556 | R19: 9118.921501 | S19: 38.1791 | T19: 10.60530556 | U19: 11920.24952 | V19: 49.9077 | W19: 13.86325
A20: 10 | B20: 95.0517 | C20: 2.6632 | D20: 0.8586 | E20: 0.1303 | F20: 0.1417 | G20: 0.002 | H20: 0.0297 | I20: 0.0221 | J20: 0.0256 | K20: 0.0121 | L20: 0.826 | M20: 0.237 | N20: 0.7077 | O20: 8243.527393 | P20: 34.514 | Q20: 9.587222222 | R20: 9138.435211 | S20: 38.2608 | T20: 10.628 | U20: 11922.11252 | V20: 49.9155 | W20: 13.86541667 | Z20: < 0,0001 | AA20: 0.001
A21: 11 | B21: 94.8794 | C21: 2.7738 | D21: 0.8983 | E21: 0.1349 | F21: 0.1499 | G21: 0.0022 | H21: 0.0319 | I21: 0.0238 | J21: 0.0275 | K21: 0.0044 | L21: 0.8241 | M21: 0.2498 | N21: 0.7092 | O21: 8259.12403 | P21: 34.5793 | Q21: 9.605361111 | R21: 9155.130539 | S21: 38.3307 | T21: 10.64741667 | U21: 11930.54378 | V21: 49.9508 | W21: 13.87522222 | X21: -12.8 | Y21: -8.4
A22: 12 | O22: 8259.12403 | P22: 34.5793 | Q22: 9.605361111 | R22: 9155.130539 | S22: 38.3307 | T22: 10.64741667 | U22: 11930.54378 | V22: 49.9508 | W22: 13.87522222
A23: 13 | O23: 8259.12403 | P23: 34.5793 | Q23: 9.605361111 | R23: 9155.130539 | S23: 38.3307 | T23: 10.64741667 | U23: 11930.54378 | V23: 49.9508 | W23: 13.87522222
A24: 14 | O24: 8259.12403 | P24: 34.5793 | Q24: 9.605361111 | R24: 9155.130539 | S24: 38.3307 | T24: 10.64741667 | U24: 11930.54378 | V24: 49.9508 | W24: 13.87522222
A25: 15 | B25: 93.2669 | C25: 3.5402 | D25: 1.3467 | E25: 0.1951 | F25: 0.2792 | G25: 0.0029 | H25: 0.0662 | I25: 0.0539 | J25: 0.0551 | K25: 0.0099 | L25: 0.879 | M25: 0.3048 | N25: 0.7256 | O25: 8413.275174 | P25: 35.2247 | Q25: 9.784638889 | R25: 9319.93421 | S25: 39.0207 | T25: 10.83908333 | U25: 12007.28497 | V25: 50.2721 | W25: 13.96447222
A26: 16 | B26: 93.4073 | C26: 3.4678 | D26: 1.3052 | E26: 0.1908 | F26: 0.2712 | G26: 0.0029 | H26: 0.0658 | I26: 0.0531 | J26: 0.0547 | K26: 0.0063 | L26: 0.8707 | M26: 0.3042 | N26: 0.7244 | O26: 8401.85834 | P26: 35.1769 | Q26: 9.771361111 | R26: 9307.753069 | S26: 38.9697 | T26: 10.82491667 | U26: 12001.86317 | V26: 50.2494 | W26: 13.95816667
A27: 17 | O27: 8401.85834 | P27: 35.1769 | Q27: 9.771361111 | R27: 9307.753069 | S27: 38.9697 | T27: 10.82491667 | U27: 12001.86317 | V27: 50.2494 | W27: 13.95816667
A28: 18 | B28: 93.6407 | C28: 3.3659 | D28: 1.2511 | E28: 0.1848 | F28: 0.2555 | G28: 0.0028 | H28: 0.0611 | I28: 0.0494 | J28: 0.0529 | K28: 0.0033 | L28: 0.8382 | M28: 0.2944 | N28: 0.7222 | O28: 8385.712357 | P28: 35.1093 | Q28: 9.752583333 | R28: 9290.580049 | S28: 38.8978 | T28: 10.80494444 | U28: 11997.68336 | V28: 50.2319 | W28: 13.95330556
A29: 19 | O29: 8385.712357 | P29: 35.1093 | Q29: 9.752583333 | R29: 9290.580049 | S29: 38.8978 | T29: 10.80494444 | U29: 11997.68336 | V29: 50.2319 | W29: 13.95330556
A30: 20 | O30: 8385.712357 | P30: 35.1093 | Q30: 9.752583333 | R30: 9290.580049 | S30: 38.8978 | T30: 10.80494444 | U30: 11997.68336 | V30: 50.2319 | W30: 13.95330556 | X30: -17.3 | Y30: -12.1 | AB30: відсутні | AD30: =IF(AC30=100,"ОК"," ") -> 
A31: 21 | O31: 8385.712357 | P31: 35.1093 | Q31: 9.752583333 | R31: 9290.580049 | S31: 38.8978 | T31: 10.80494444 | U31: 11997.68336 | V31: 50.2319 | W31: 13.95330556
A32: 22 | B32: 93.9217 | C32: 3.0995 | D32: 1.164 | E32: 0.1686 | F32: 0.2477 | G32: 0.0026 | H32: 0.0639 | I32: 0.0524 | J32: 0.0596 | K32: 0.0075 | L32: 0.9499 | M32: 0.2627 | N32: 0.7198 | O32: 8350.482587 | P32: 34.9618 | Q32: 9.711611111 | R32: 9252.579666 | S32: 38.7387 | T32: 10.76075 | U32: 11969.09351 | V32: 50.1122 | W32: 13.92005556
A33: 23 | O33: 8350.482587 | P33: 34.9618 | Q33: 9.711611111 | R33: 9252.579666 | S33: 38.7387 | T33: 10.76075 | U33: 11969.09351 | V33: 50.1122 | W33: 13.92005556 | AD33: =IF(AC33=100,"ОК"," ") -> 
A34: 24 | O34: 8350.482587 | P34: 34.9618 | Q34: 9.711611111 | R34: 9252.579666 | S34: 38.7387 | T34: 10.76075 | U34: 11969.09351 | V34: 50.1122 | W34: 13.92005556 | Z34: < 0,0001 | AA34: 0.002
A35: 25 | B35: 93.9466 | C35: 3.1908 | D35: 1.1596 | E35: 0.1703 | F35: 0.2328 | G35: 0.0025 | H35: 0.0584 | I35: 0.0468 | J35: 0.0509 | K35: 0.0072 | L35: 0.8553 | M35: 0.279 | N35: 0.7192 | O35: 8354.041391 | P35: 34.9767 | Q35: 9.71575 | R35: 9256.640047 | S35: 38.7557 | T35: 10.76547222 | U35: 11978.91008 | V35: 50.1533 | W35: 13.93147222 | X35: -13.9 | Y35: -9
A36: 26 | B36: 94.0197 | C36: 3.2005 | D36: 1.1526 | E36: 0.1712 | F36: 0.2272 | G36: 0.0026 | H36: 0.0561 | I36: 0.0453 | J36: 0.0498 | K36: 0.0064 | L36: 0.7966 | M36: 0.2721 | N36: 0.7186 | O36: 8356.979195 | P36: 34.989 | Q36: 9.719166667 | R36: 9259.983889 | S36: 38.7697 | T36: 10.76936111 | U36: 11988.27284 | V36: 50.1925 | W36: 13.94236111
A37: 27 | O37: 8356.979195 | P37: 34.989 | Q37: 9.719166667 | R37: 9259.983889 | S37: 38.7697 | T37: 10.76936111 | U37: 11988.27284 | V37: 50.1925 | W37: 13.94236111
A38: 28 | O38: 8356.979195 | P38: 34.989 | Q38: 9.719166667 | R38: 9259.983889 | S38: 38.7697 | T38: 10.76936111 | U38: 11988.27284 | V38: 50.1925 | W38: 13.94236111
A39: 29 | B39: 94.0471 | C39: 3.1702 | D39: 1.1436 | E39: 0.1696 | F39: 0.2252 | G39: 0.0026 | H39: 0.0549 | I39: 0.0445 | J39: 0.0497 | K39: 0.0105 | L39: 0.8153 | M39: 0.2669 | N39: 0.7183 | O39: 8351.366316 | P39: 34.9655 | Q39: 9.712638889 | R39: 9253.917203 | S39: 38.7443 | T39: 10.76230556 | U39: 11983.23319 | V39: 50.1714 | W39: 13.9365
A40: 30 | B40: 93.983 | C40: 3.2197 | D40: 1.1594 | E40: 0.1716 | F40: 0.2296 | G40: 0.0026 | H40: 0.0563 | I40: 0.0453 | J40: 0.051 | K40: 0.0035 | L40: 0.8061 | M40: 0.272 | N40: 0.7189 | O40: 8359.439308 | P40: 34.9993 | Q40: 9.722027778 | R40: 9262.58731 | S40: 38.7806 | T40: 10.77238889 | U40: 11989.08491 | V40: 50.1959 | W40: 13.94330556
A41: 31 | O41: 8359.439308 | P41: 34.9993 | Q41: 9.722027778 | R41: 9262.58731 | S41: 38.7806 | T41: 10.77238889 | U41: 11989.08491 | V41: 50.1959 | W41: 13.94330556
A42: Рівень одоризації відповідає чинним нормативним документам | O42: =SUMPRODUCT(O11:O41,' розрахунок'!D6:D36)/' розрахунок'!D37 -> 8311.548394 | P42: =SUMPRODUCT(P11:P41,' розрахунок'!D6:D36)/' розрахунок'!D37 -> 34.79893885 | Q42: =SUMPRODUCT(Q11:Q41,' розрахунок'!D6:D36)/' розрахунок'!D37 -> 9.666613088 | R42: =SUMPRODUCT(R11:R41,' розрахунок'!D6:D36)/' розрахунок'!D37 -> 9211.179429 | S42: =SUMPRODUCT(S11:S41,' розрахунок'!D6:D36)/' розрахунок'!D37 -> 38.56532801 | T42: =SUMPRODUCT(T11:T41,' розрахунок'!D6:D36)/' розрахунок'!D37 -> 10.71290121
H43: Середньозважене значення теплоти згоряння:
B46: Начальника управління Херсонського ЛВУМГ Доскоч М.В. 01.06.2017
C47: Підрозділу підприємства, якому підпорядкована лабораторія | O47: прізвище | T47: підпис | Y47: дата
B48: Завідувач лабораторії Камишанова О.С. 01.06.2017
C49: Лабораторія, де здійснювалось вимірювання газу | O49: прізвище | T49: підпис | Y49: дата
B50: Начальник служби ГВ та М Скавронський Є.К. 01.06.2017
C51: Підрозділу, відповідального за облік газу за маршрутом | O51: прізвище | T51: підпис | Y51: дата

Sheet розрахунок
C2: Додаток до Паспорту фізико-хімічних показників природного газу по маршруту № 687
A3: Число місяця | B3: Теплота згоряння вища, МДж/м3 | C3: ХЕРСОНСЬКА область | D3: Загальний обсяг газу, м3
C5: ГРС м.Верхній Рогачик
A6: 1 | B6: 38.25 | C6: 1365 | D6: =SUM(C6:C6) -> 1365
A7: 2 | B7: 38.25 | C7: 1173 | D7: 1173
A8: 3 | B8: 38.1906 | C8: 1041 | D8: 1041
A9: 4 | B9: 38.1791 | C9: 1015 | D9: 1015
A10: 5 | B10: 38.1791 | C10: 1104 | D10: 1104
A11: 6 | B11: 38.1791 | C11: 1035 | D11: 1035
A12: 7 | B12: 38.1791 | C12: 1051 | D12: 1051
A13: 8 | B13: 38.1791 | C13: 1261 | D13: 1261
A14: 9 | B14: 38.1791 | C14: 1171 | D14: 1171
A15: 10 | B15: 38.2608 | C15: 1532 | D15: 1532
A16: 11 | B16: 38.3307 | C16: 2065 | D16: 2065
A17: 12 | B17: 38.3307 | C17: 1711 | D17: 1711
A18: 13 | B18: 38.3307 | C18: 1435 | D18: 1435
A19: 14 | B19: 38.3307 | C19: 2294 | D19: 2294
A20: 15 | B20: 39.0207 | C20: 1649 | D20: 1649
A21: 16 | B21: 38.9697 | C21: 1209 | D21: 1209
A22: 17 | B22: 38.9697 | C22: 1290 | D22: 1290
A23: 18 | B23: 38.8978 | C23: 1474 | D23: 1474
A24: 19 | B24: 38.8978 | C24: 1493 | D24: 1493
A25: 20 | B25: 38.8978 | C25: 1723 | D25: 1723
A26: 21 | B26: 38.8978 | C26: 1526 | D26: 1526
A27: 22 | B27: 38.7387 | C27: 1836 | D27: 1836
A28: 23 | B28: 38.7387 | C28: 1376 | D28: 1376
A29: 24 | B29: 38.7387 | C29: 1228 | D29: 1228
A30: 25 | B30: 38.7557 | C30: 1157 | D30: 1157
A31: 26 | B31: 38.7697 | C31: 1000 | D31: 1000
A32: 27 | B32: 38.7697 | C32: 1034 | D32: 1034
A33: 28 | B33: 38.7697 | C33: 1037 | D33: 1037
A34: 29 | B34: 38.7443 | C34: 893 | D34: 893
A35: 30 | B35: 38.7806 | C35: 860 | D35: 860
A36: 31 | B36: 38.7806 | C36: 885 | D36: 885
A37: Загальний обсяг газу, м3 | C37: =SUM(C6:C36) -> 40923 | D37: =SUM(D6:D36) -> 40923
A38: Енергія, МДж | C38: =SUMPRODUCT(B6:B36,C6:C36) -> 1578208.918 | D38: =SUMPRODUCT(B6:B36,D6:D36) -> 1578208.918
A39: Теплота згоряння (середньозважене значення за місяць), МДж/м³ | C39: =C38/C37 -> 38.56532801 | D39: =D38/D37 -> 38.56532801
A40: Теплота згоряння (середньозважене значення за місяць), ккал/м³ | C40: =C39*238.8459 -> 9211.170478 | D40: =D39*238.8459 -> 9211.170478
A41: Теплота згоряння (середньозважене значення за місяць), кВт*год./м³ | C41: =C39/3.6 -> 10.71259111 | D41: 10.71259111

Sheet додаток
A2: Додаток до Паспорту фізико-хімічних показників природного газу № 687
A4: Область | B4: ГРС, прямий споживач | C4: Cередньозважене значення вищої теплоти згоряння
C5: МДж/м³ | D5: ккал/м³ | E5: кВт*год./м³
A6: Херсонська область | B6: ГРСм. Верхній Рогачик | C6: 38.57 | D6: 9211 | E6: 1.071
A7: Середньозважене значення вищої теплоти згоряння по маршруту № 687 | C7: 38.57 | D7: 9211 | E7: 10.71
A11: Начальника управління Херсонського ЛВУМГ Доскоч М.В. | F11: 2017-06-01
A12: Підрозділу підприємства, якому підпорядкована лабораторія | D12: прізвище | E12: підпис | F12: дата
A14: Завідувач лабораторії Камишанова О.С. | F14: 2017-06-01
A15: Лабораторія, де здійснювалось вимірювання газу | D15: прізвище | E15: підпис | F15: дата
A17: Начальник служби ГВ та М Скавронський Є.К. | F17: 2017-06-01
A18: Підрозділу, відповідального за облік газу за маршрутом | D18: прізвище | E18: підпис | F18: дата

Sheet variablesList (hidden)
A1: 3 | B1: x:\gaysin | C1: 10, 11, 24, 25, 127, 128, 132, 180, 207, 215 | D1: x:\
B2: x:\Illinci
B3: x:\Talne
